[Event "Titled Tuesday Blitz August 22 Late 2023"]
[White "campochess"]
[Black "Adan Bermudez, Sergio"]
[BlackFideId "2292726"]
[WhiteElo "2190"]
[BlackElo "2001"]
[Result "0-1"]
[Round "10"]
[TimeControl "180+1"]
[Date "2023.08.22"]
[WhiteClock "0:00:09"]
[BlackClock "0:00:21"]
[Board "119"]

1. e4 {[%clk 0:02:59]}  c5 {[%clk 0:02:52]} 2. b4 {[%clk 0:02:58]}  b6 {[%clk 0:02:44]} 3. bxc5 {[%clk 0:02:57]}  bxc5 {[%clk 0:02:43]} 4. c3 {[%clk 0:02:57]}  Nf6 {[%clk 0:02:42]} 5. Bd3 {[%clk 0:02:56]}  Bb7 {[%clk 0:02:40]} 6. Qe2 {[%clk 0:02:55]}  Nc6 {[%clk 0:02:37]} 7. Nf3 {[%clk 0:02:55]}  Qc7 {[%clk 0:02:31]} 8. O-O {[%clk 0:02:54]}  Ng4 {[%clk 0:02:26]} 9. h3 {[%clk 0:02:46]}  h5 {[%clk 0:02:25]} 10. g3 {[%clk 0:02:23]}  Nge5 {[%clk 0:01:59]} 11. Bc2 {[%clk 0:02:17]}  Nxf3+ {[%clk 0:01:43]} 12. Qxf3 {[%clk 0:02:10]}  h4 {[%clk 0:01:44]} 13. d4 {[%clk 0:02:01]}  cxd4 {[%clk 0:01:39]} 14. Bf4 {[%clk 0:01:45]}  e5 {[%clk 0:01:34]} 15. Bg5 {[%clk 0:01:45]}  f6 {[%clk 0:01:12]} 16. Bd2 {[%clk 0:01:41]}  hxg3 {[%clk 0:01:08]} 17. Qxg3 {[%clk 0:01:34]}  O-O-O {[%clk 0:01:05]} 18. a4 {[%clk 0:01:26]}  Na5 {[%clk 0:00:58]} 19. Na3 {[%clk 0:01:19]}  Bxa3 {[%clk 0:00:53]} 20. Rxa3 {[%clk 0:01:17]}  Nc4 {[%clk 0:00:52]} 21. Bc1 {[%clk 0:01:17]}  Nxa3 {[%clk 0:00:50]} 22. Bxa3 {[%clk 0:01:17]}  Qxc3 {[%clk 0:00:50]} 23. Qxc3+ {[%clk 0:01:11]}  dxc3 {[%clk 0:00:50]} 24. f3 {[%clk 0:01:11]}  Rxh3 {[%clk 0:00:49]} 25. Kg2 {[%clk 0:01:10]}  Rdh8 {[%clk 0:00:48]} 26. Bd3 {[%clk 0:00:59]}  Rh2+ {[%clk 0:00:47]} 27. Kg3 {[%clk 0:00:59]}  R8h4 {[%clk 0:00:39]} 28. Bc5 {[%clk 0:00:49]}  g5 {[%clk 0:00:33]} 29. Bxa7 {[%clk 0:00:29]}  Rd2 {[%clk 0:00:30]} 30. Bb5 {[%clk 0:00:23]}  d5 {[%clk 0:00:26]} 31. Rc1 {[%clk 0:00:18]}  d4 {[%clk 0:00:24]} 32. a5 {[%clk 0:00:10]}  Kc7 {[%clk 0:00:21]} 33. Bb6+ {[%clk 0:00:09]}  Kd6 {[%clk 0:00:21]} 34. a6 {[%clk 0:00:09]}  Bc8 {[%clk 0:00:21]} 35. Ba5 {[%clk 0:00:09]}  Rh3# {[%clk 0:00:21]} 0-1


[Site "https://www.chess.com"]

[Event "Titled Tuesday Blitz August 22 Late 2023"]
[White "Burke, Paul"]
[Black "Capp, Stephen"]
[WhiteFideId "2605767"]
[BlackFideId "2027089"]
[WhiteElo "1855"]
[BlackElo "2165"]
[Result "1-0"]
[Round "10"]
[TimeControl "180+1"]
[Date "2023.08.22"]
[WhiteClock "0:00:07"]
[BlackClock "0:00:00"]
[Board "121"]

1. e4 {[%clk 0:03:00]}  e5 {[%clk 0:02:59]} 2. Nf3 {[%clk 0:02:59]}  d5 {[%clk 0:02:59]} 3. Nxe5 {[%clk 0:02:58]}  Bd6 {[%clk 0:02:59]} 4. d4 {[%clk 0:02:56]}  dxe4 {[%clk 0:02:58]} 5. Nc4 {[%clk 0:02:55]}  Nf6 {[%clk 0:02:57]} 6. Ne3 {[%clk 0:02:54]}  h6 {[%clk 0:02:55]} 7. Be2 {[%clk 0:02:52]}  Nc6 {[%clk 0:02:55]} 8. d5 {[%clk 0:02:47]}  Ne5 {[%clk 0:02:53]} 9. c4 {[%clk 0:02:38]}  O-O {[%clk 0:02:50]} 10. Nc3 {[%clk 0:02:37]}  a6 {[%clk 0:02:48]} 11. Qc2 {[%clk 0:02:36]}  Re8 {[%clk 0:02:39]} 12. Nxe4 {[%clk 0:02:21]}  Nxe4 {[%clk 0:02:32]} 13. Qxe4 {[%clk 0:02:20]}  Bb4+ {[%clk 0:02:19]} 14. Kf1 {[%clk 0:02:13]}  Ng6 {[%clk 0:01:38]} 15. Qc2 {[%clk 0:02:04]}  Nf4 {[%clk 0:01:37]} 16. Bf3 {[%clk 0:01:46]}  Qf6 {[%clk 0:01:34]} 17. Bd2 {[%clk 0:01:27]}  Bd6 {[%clk 0:01:28]} 18. Bc3 {[%clk 0:01:25]}  Be5 {[%clk 0:01:20]} 19. Bxe5 {[%clk 0:01:22]}  Rxe5 {[%clk 0:01:18]} 20. Re1 {[%clk 0:01:21]}  Bd7 {[%clk 0:01:15]} 21. Qc3 {[%clk 0:01:14]}  Rae8 {[%clk 0:01:12]} 22. Rc1 {[%clk 0:01:05]}  b6 {[%clk 0:01:11]} 23. b4 {[%clk 0:01:04]}  Ng6 {[%clk 0:00:46]} 24. c5 {[%clk 0:00:36]}  Nh4 {[%clk 0:00:42]} 25. Be2 {[%clk 0:00:24]}  bxc5 {[%clk 0:00:30]} 26. bxc5 {[%clk 0:00:23]}  Qe7 {[%clk 0:00:18]} 27. c6 {[%clk 0:00:21]}  Bc8 {[%clk 0:00:18]} 28. g3 {[%clk 0:00:18]}  Rxe3 {[%clk 0:00:17]} 29. Qxe3 {[%clk 0:00:15]}  Bh3+ {[%clk 0:00:16]} 30. Kg1 {[%clk 0:00:13]}  Qd8 {[%clk 0:00:13]} 31. Qd2 {[%clk 0:00:11]}  Ng6 {[%clk 0:00:11]} 32. Bf3 {[%clk 0:00:09]}  Ne5 {[%clk 0:00:10]} 33. Bg2 {[%clk 0:00:09]}  Bxg2 {[%clk 0:00:09]} 34. Kxg2 {[%clk 0:00:09]}  Qd6 {[%clk 0:00:09]} 35. Rhe1 {[%clk 0:00:08]}  Rd8 {[%clk 0:00:09]} 36. f4 {[%clk 0:00:08]}  Ng6 {[%clk 0:00:07]} 37. Qe3 {[%clk 0:00:08]}  Qb4 {[%clk 0:00:00]} 38. Qe4 {[%clk 0:00:07]} 1-0


[Site "https://www.chess.com"]

[Event "Titled Tuesday Blitz August 22 Late 2023"]
[White "Freitag, Manfred"]
[Black "dorpato"]
[WhiteFideId "1602004"]
[WhiteElo "2652"]
[BlackElo "2011"]
[Result "1-0"]
[Round "10"]
[TimeControl "180+1"]
[Date "2023.08.22"]
[WhiteClock "0:01:10"]
[BlackClock "0:00:16"]
[Board "122"]

1. e4 {[%clk 0:02:56]}  c5 {[%clk 0:02:59]} 2. Nf3 {[%clk 0:02:55]}  d6 {[%clk 0:02:59]} 3. d4 {[%clk 0:02:54]}  cxd4 {[%clk 0:03:00]} 4. Nxd4 {[%clk 0:02:55]}  Nf6 {[%clk 0:02:59]} 5. Nc3 {[%clk 0:02:54]}  a6 {[%clk 0:02:59]} 6. Bg5 {[%clk 0:02:54]}  e6 {[%clk 0:02:57]} 7. f4 {[%clk 0:02:53]}  Be7 {[%clk 0:02:57]} 8. Qf3 {[%clk 0:02:53]}  Qc7 {[%clk 0:02:57]} 9. O-O-O {[%clk 0:02:52]}  Nbd7 {[%clk 0:02:55]} 10. g4 {[%clk 0:02:52]}  h6 {[%clk 0:02:55]} 11. Bxf6 {[%clk 0:02:50]}  Bxf6 {[%clk 0:02:52]} 12. Kb1 {[%clk 0:02:49]}  O-O {[%clk 0:02:48]} 13. h4 {[%clk 0:02:47]}  e5 {[%clk 0:02:47]} 14. Nf5 {[%clk 0:02:43]}  exf4 {[%clk 0:02:37]} 15. Nd5 {[%clk 0:02:43]}  Qc5 {[%clk 0:02:24]} 16. g5 {[%clk 0:02:42]}  Be5 {[%clk 0:02:11]} 17. gxh6 {[%clk 0:02:22]}  g6 {[%clk 0:02:11]} 18. Nfe7+ {[%clk 0:02:16]}  Kh7 {[%clk 0:02:02]} 19. h5 {[%clk 0:02:16]}  Nb6 {[%clk 0:01:40]} 20. hxg6+ {[%clk 0:02:13]}  fxg6 {[%clk 0:01:39]} 21. Nxg6 {[%clk 0:02:09]}  Kxg6 {[%clk 0:01:26]} 22. h7 {[%clk 0:02:08]}  Nxd5 {[%clk 0:01:20]} 23. exd5 {[%clk 0:01:56]}  Qe3 {[%clk 0:01:10]} 24. Qh5+ {[%clk 0:01:49]}  Kf6 {[%clk 0:01:04]} 25. Bd3 {[%clk 0:01:48]}  Qb6 {[%clk 0:00:51]} 26. h8=Q+ {[%clk 0:01:41]}  Rxh8 {[%clk 0:00:49]} 27. Qxh8+ {[%clk 0:01:40]}  Kg5 {[%clk 0:00:46]} 28. Rdg1+ {[%clk 0:01:38]}  Bg4 {[%clk 0:00:44]} 29. Qh5+ {[%clk 0:01:33]}  Kf6 {[%clk 0:00:42]} 30. Qh6+ {[%clk 0:01:32]}  Kf7 {[%clk 0:00:34]} 31. Qg6+ {[%clk 0:01:24]}  Ke7 {[%clk 0:00:31]} 32. Rh7+ {[%clk 0:01:20]}  Bg7 {[%clk 0:00:24]} 33. Rxg7+ {[%clk 0:01:12]}  Kd8 {[%clk 0:00:16]} 34. Qxg4 {[%clk 0:01:10]} 1-0


[Site "https://www.chess.com"]

[Event "Titled Tuesday Blitz August 22 Late 2023"]
[White "Nakamura, Hikaru"]
[Black "Kramnik, Vladimir"]
[WhiteFideId "2016192"]
[BlackFideId "4101588"]
[WhiteElo "3251"]
[BlackElo "2961"]
[Result "1-0"]
[Round "11"]
[TimeControl "180+1"]
[Date "2023.08.22"]
[WhiteClock "0:00:05"]
[BlackClock "0:00:00"]
[Board "1"]

1. Nf3 {[%clk 0:03:00]}  d5 {[%clk 0:02:58]} 2. e3 {[%clk 0:03:00]}  Nf6 {[%clk 0:02:57]} 3. b3 {[%clk 0:03:01]}  e6 {[%clk 0:02:56]} 4. c4 {[%clk 0:03:00]}  c5 {[%clk 0:02:53]} 5. Bb2 {[%clk 0:02:56]}  Nc6 {[%clk 0:02:52]} 6. cxd5 {[%clk 0:02:57]}  exd5 {[%clk 0:02:52]} 7. Be2 {[%clk 0:02:54]}  Bd6 {[%clk 0:02:48]} 8. d4 {[%clk 0:02:52]}  cxd4 {[%clk 0:02:44]} 9. Nxd4 {[%clk 0:02:53]}  Bb4+ {[%clk 0:02:29]} 10. Kf1 {[%clk 0:02:15]}  O-O {[%clk 0:02:27]} 11. Nd2 {[%clk 0:02:14]}  Re8 {[%clk 0:02:19]} 12. a3 {[%clk 0:02:08]}  Bxd2 {[%clk 0:02:17]} 13. Qxd2 {[%clk 0:02:07]}  Ne4 {[%clk 0:02:17]} 14. Qe1 {[%clk 0:02:04]}  Qb6 {[%clk 0:02:02]} 15. f3 {[%clk 0:01:56]}  Nd6 {[%clk 0:01:58]} 16. Qc3 {[%clk 0:01:40]}  Nxd4 {[%clk 0:01:53]} 17. Qxd4 {[%clk 0:01:38]}  Nf5 {[%clk 0:01:48]} 18. Qxb6 {[%clk 0:01:35]}  axb6 {[%clk 0:01:49]} 19. Kf2 {[%clk 0:01:28]}  Rxe3 {[%clk 0:01:46]} 20. Bd1 {[%clk 0:01:14]}  Rd3 {[%clk 0:01:11]} 21. Ke2 {[%clk 0:01:12]}  Re3+ {[%clk 0:01:11]} 22. Kd2 {[%clk 0:01:12]}  Re6 {[%clk 0:01:07]} 23. Be2 {[%clk 0:01:08]}  Bd7 {[%clk 0:01:06]} 24. Bd3 {[%clk 0:01:02]}  Nh4 {[%clk 0:01:05]} 25. Rhg1 {[%clk 0:01:01]}  Rae8 {[%clk 0:01:02]} 26. Bd4 {[%clk 0:00:59]}  b5 {[%clk 0:00:58]} 27. Bf2 {[%clk 0:00:43]}  Nf5 {[%clk 0:00:53]} 28. Rge1 {[%clk 0:00:39]}  Rxe1 {[%clk 0:00:51]} 29. Rxe1 {[%clk 0:00:30]}  Rxe1 {[%clk 0:00:50]} 30. Kxe1 {[%clk 0:00:30]}  h5 {[%clk 0:00:43]} 31. Kd2 {[%clk 0:00:29]}  d4 {[%clk 0:00:37]} 32. Be4 {[%clk 0:00:30]}  Be6 {[%clk 0:00:26]} 33. Bd3 {[%clk 0:00:21]}  g6 {[%clk 0:00:22]} 34. Kc2 {[%clk 0:00:17]}  Bd7 {[%clk 0:00:20]} 35. Be4 {[%clk 0:00:16]}  Nd6 {[%clk 0:00:15]} 36. Bd5 {[%clk 0:00:15]}  Nf5 {[%clk 0:00:08]} 37. Bxb7 {[%clk 0:00:13]}  Kf8 {[%clk 0:00:07]} 38. Be4 {[%clk 0:00:11]}  Ke7 {[%clk 0:00:06]} 39. Bd3 {[%clk 0:00:10]}  Kd6 {[%clk 0:00:06]} 40. Kd2 {[%clk 0:00:09]}  Ke5 {[%clk 0:00:06]} 41. Bc2 {[%clk 0:00:07]}  h4 {[%clk 0:00:05]} 42. Bd3 {[%clk 0:00:05]}  g5 {[%clk 0:00:05]} 43. g4 {[%clk 0:00:05]}  hxg3 {[%clk 0:00:05]} 44. hxg3 {[%clk 0:00:06]}  Kd5 {[%clk 0:00:04]} 45. Be4+ {[%clk 0:00:06]}  Ke5 {[%clk 0:00:04]} 46. Bd3 {[%clk 0:00:07]}  Ne7 {[%clk 0:00:03]} 47. Bf1 {[%clk 0:00:05]}  Ng6 {[%clk 0:00:03]} 48. Be2 {[%clk 0:00:05]}  Kd5 {[%clk 0:00:02]} 49. Bd3 {[%clk 0:00:04]}  Ne5 {[%clk 0:00:02]} 50. Be4+ {[%clk 0:00:05]}  Kc5 {[%clk 0:00:02]} 51. f4 {[%clk 0:00:05]}  gxf4 {[%clk 0:00:02]} 52. gxf4 {[%clk 0:00:06]}  Ng4 {[%clk 0:00:02]} 53. Bh4 {[%clk 0:00:05]}  Be6 {[%clk 0:00:00]} 54. Be7+ {[%clk 0:00:05]} 1-0


[Site "https://www.chess.com"]

[Event "Titled Tuesday Blitz August 22 Late 2023"]
[White "Xiong, Jeffery"]
[Black "Sarana, Alexey"]
[WhiteFideId "2047640"]
[BlackFideId "24133795"]
[WhiteElo "3027"]
[BlackElo "3091"]
[Result "1/2-1/2"]
[Round "11"]
[TimeControl "180+1"]
[Date "2023.08.22"]
[WhiteClock "0:00:31"]
[BlackClock "0:00:15"]
[Board "2"]

1. d4 {[%clk 0:03:00]}  Nf6 {[%clk 0:02:59]} 2. c4 {[%clk 0:02:59]}  e6 {[%clk 0:02:59]} 3. Nc3 {[%clk 0:03:00]}  d5 {[%clk 0:03:00]} 4. Nf3 {[%clk 0:02:59]}  Nbd7 {[%clk 0:03:00]} 5. g3 {[%clk 0:02:58]}  Be7 {[%clk 0:02:54]} 6. Bg2 {[%clk 0:02:55]}  O-O {[%clk 0:02:55]} 7. O-O {[%clk 0:02:54]}  dxc4 {[%clk 0:02:49]} 8. e4 {[%clk 0:02:52]}  c5 {[%clk 0:02:42]} 9. d5 {[%clk 0:02:42]}  exd5 {[%clk 0:02:41]} 10. e5 {[%clk 0:02:43]}  d4 {[%clk 0:02:32]} 11. exf6 {[%clk 0:02:43]}  Nxf6 {[%clk 0:02:32]} 12. Ne2 {[%clk 0:02:37]}  Bd6 {[%clk 0:01:55]} 13. Bf4 {[%clk 0:02:30]}  d3 {[%clk 0:01:52]} 14. Nc3 {[%clk 0:02:26]}  Bxf4 {[%clk 0:01:52]} 15. gxf4 {[%clk 0:02:27]}  Bg4 {[%clk 0:01:46]} 16. Qd2 {[%clk 0:02:22]}  Bxf3 {[%clk 0:01:40]} 17. Bxf3 {[%clk 0:02:22]}  Qd7 {[%clk 0:01:40]} 18. Rfe1 {[%clk 0:02:15]}  Rae8 {[%clk 0:01:20]} 19. Re5 {[%clk 0:02:15]}  Rxe5 {[%clk 0:00:57]} 20. fxe5 {[%clk 0:02:15]}  Qf5 {[%clk 0:00:57]} 21. exf6 {[%clk 0:01:55]}  Qxf3 {[%clk 0:00:57]} 22. Qg5 {[%clk 0:01:56]}  Qxf6 {[%clk 0:00:57]} 23. Qxf6 {[%clk 0:01:57]}  gxf6 {[%clk 0:00:57]} 24. b3 {[%clk 0:01:58]}  cxb3 {[%clk 0:00:50]} 25. axb3 {[%clk 0:01:59]}  a6 {[%clk 0:00:50]} 26. Ne4 {[%clk 0:01:52]}  Rc8 {[%clk 0:00:41]} 27. Rd1 {[%clk 0:01:46]}  c4 {[%clk 0:00:39]} 28. bxc4 {[%clk 0:01:47]}  Rxc4 {[%clk 0:00:39]} 29. Nxf6+ {[%clk 0:01:47]}  Kg7 {[%clk 0:00:39]} 30. Ne8+ {[%clk 0:01:42]}  Kf8 {[%clk 0:00:35]} 31. Nd6 {[%clk 0:01:40]}  Rd4 {[%clk 0:00:22]} 32. Nxb7 {[%clk 0:01:39]}  Rd5 {[%clk 0:00:22]} 33. Kf1 {[%clk 0:01:24]}  Ke7 {[%clk 0:00:21]} 34. Ke1 {[%clk 0:01:14]}  Re5+ {[%clk 0:00:05]} 35. Kd2 {[%clk 0:01:14]}  Rb5 {[%clk 0:00:06]} 36. Ra1 {[%clk 0:01:07]}  Rxb7 {[%clk 0:00:05]} 37. Rxa6 {[%clk 0:01:08]}  Rb2+ {[%clk 0:00:06]} 38. Kxd3 {[%clk 0:01:08]}  Rb3+ {[%clk 0:00:06]} 39. Ke4 {[%clk 0:01:08]}  Rh3 {[%clk 0:00:07]} 40. f4 {[%clk 0:00:55]}  Rxh2 {[%clk 0:00:07]} 41. Kf5 {[%clk 0:00:56]}  Kf8 {[%clk 0:00:06]} 42. Ra1 {[%clk 0:00:54]}  Rh6 {[%clk 0:00:05]} 43. Kg5 {[%clk 0:00:52]}  Rg6+ {[%clk 0:00:05]} 44. Kf5 {[%clk 0:00:52]}  Kg7 {[%clk 0:00:06]} 45. Rh1 {[%clk 0:00:51]}  Rg2 {[%clk 0:00:05]} 46. Rh3 {[%clk 0:00:51]}  Rg1 {[%clk 0:00:05]} 47. Rh2 {[%clk 0:00:51]}  Rg6 {[%clk 0:00:05]} 48. Rh1 {[%clk 0:00:52]}  h6 {[%clk 0:00:05]} 49. Rh2 {[%clk 0:00:52]}  Rf6+ {[%clk 0:00:06]} 50. Ke5 {[%clk 0:00:51]}  Ra6 {[%clk 0:00:06]} 51. Kf5 {[%clk 0:00:52]}  Ra5+ {[%clk 0:00:06]} 52. Kg4 {[%clk 0:00:48]}  Kg6 {[%clk 0:00:05]} 53. Rg2 {[%clk 0:00:41]}  Ra3 {[%clk 0:00:03]} 54. Rb2 {[%clk 0:00:25]}  h5+ {[%clk 0:00:02]} 55. Kh4 {[%clk 0:00:26]}  Rf3 {[%clk 0:00:03]} 56. Rb4 {[%clk 0:00:25]}  f6 {[%clk 0:00:03]} 57. Ra4 {[%clk 0:00:25]}  Kf5 {[%clk 0:00:03]} 58. Ra5+ {[%clk 0:00:25]}  Kg6 {[%clk 0:00:02]} 59. Rxh5 {[%clk 0:00:21]}  Rxf4+ {[%clk 0:00:02]} 60. Kg3 {[%clk 0:00:22]}  Kxh5 {[%clk 0:00:02]} 61. Kxf4 {[%clk 0:00:22]}  Kg6 {[%clk 0:00:03]} 62. Kg4 {[%clk 0:00:23]}  f5+ {[%clk 0:00:04]} 63. Kf4 {[%clk 0:00:23]}  Kf6 {[%clk 0:00:05]} 64. Kf3 {[%clk 0:00:24]}  Kg5 {[%clk 0:00:06]} 65. Kg3 {[%clk 0:00:24]}  f4+ {[%clk 0:00:07]} 66. Kf3 {[%clk 0:00:25]}  Kf5 {[%clk 0:00:08]} 67. Kf2 {[%clk 0:00:26]}  Kg4 {[%clk 0:00:09]} 68. Kg2 {[%clk 0:00:26]}  f3+ {[%clk 0:00:09]} 69. Kf2 {[%clk 0:00:27]}  Kf4 {[%clk 0:00:10]} 70. Kf1 {[%clk 0:00:28]}  Ke3 {[%clk 0:00:11]} 71. Ke1 {[%clk 0:00:28]}  Ke4 {[%clk 0:00:12]} 72. Kf2 {[%clk 0:00:28]}  Kf4 {[%clk 0:00:13]} 73. Kf1 {[%clk 0:00:29]}  Kg3 {[%clk 0:00:13]} 74. Kg1 {[%clk 0:00:30]}  f2+ {[%clk 0:00:14]} 75. Kf1 {[%clk 0:00:30]}  Kh2 {[%clk 0:00:15]} 76. Kxf2 {[%clk 0:00:31]} 1/2-1/2


[Site "https://www.chess.com"]

[Event "Titled Tuesday Blitz August 22 Late 2023"]
[White "Duda, Jan-Krzysztof"]
[Black "Grischuk, Alexander"]
[WhiteFideId "1170546"]
[BlackFideId "4126025"]
[WhiteElo "3093"]
[BlackElo "3013"]
[Result "1-0"]
[Round "11"]
[TimeControl "180+1"]
[Date "2023.08.22"]
[WhiteClock "0:00:05"]
[BlackClock "0:00:00"]
[Board "4"]

1. e4 {[%clk 0:03:00]}  e5 {[%clk 0:03:00]} 2. Nf3 {[%clk 0:03:01]}  Nc6 {[%clk 0:03:00]} 3. Bb5 {[%clk 0:03:00]}  Nf6 {[%clk 0:03:00]} 4. d3 {[%clk 0:02:58]}  Bc5 {[%clk 0:03:01]} 5. Bxc6 {[%clk 0:02:59]}  dxc6 {[%clk 0:03:01]} 6. Nbd2 {[%clk 0:02:59]}  Be6 {[%clk 0:03:00]} 7. O-O {[%clk 0:02:57]}  Nd7 {[%clk 0:03:00]} 8. Nb3 {[%clk 0:02:56]}  Bb6 {[%clk 0:03:00]} 9. Ng5 {[%clk 0:02:55]}  Bxb3 {[%clk 0:03:00]} 10. axb3 {[%clk 0:02:55]}  Qe7 {[%clk 0:02:52]} 11. Kh1 {[%clk 0:02:53]}  f6 {[%clk 0:02:47]} 12. Nf3 {[%clk 0:02:53]}  Nc5 {[%clk 0:02:41]} 13. Nd2 {[%clk 0:02:51]}  Ne6 {[%clk 0:02:41]} 14. Nc4 {[%clk 0:02:51]}  a6 {[%clk 0:02:14]} 15. Bd2 {[%clk 0:02:36]}  O-O-O {[%clk 0:02:08]} 16. b4 {[%clk 0:02:31]}  h5 {[%clk 0:02:03]} 17. Nxb6+ {[%clk 0:01:47]}  cxb6 {[%clk 0:02:03]} 18. Ra3 {[%clk 0:01:40]}  b5 {[%clk 0:01:18]} 19. Qe1 {[%clk 0:01:21]}  Nd4 {[%clk 0:01:14]} 20. Qb1 {[%clk 0:01:06]}  g5 {[%clk 0:01:12]} 21. Be3 {[%clk 0:01:00]}  g4 {[%clk 0:00:51]} 22. c3 {[%clk 0:00:47]}  Ne6 {[%clk 0:00:51]} 23. Qc2 {[%clk 0:00:47]}  h4 {[%clk 0:00:45]} 24. f4 {[%clk 0:00:38]}  exf4 {[%clk 0:00:35]} 25. Bxf4 {[%clk 0:00:37]}  Nxf4 {[%clk 0:00:35]} 26. Rxf4 {[%clk 0:00:37]}  Qd6 {[%clk 0:00:35]} 27. Rxg4 {[%clk 0:00:32]}  Qxd3 {[%clk 0:00:33]} 28. Qxd3 {[%clk 0:00:31]}  Rxd3 {[%clk 0:00:34]} 29. h3 {[%clk 0:00:30]}  Rd2 {[%clk 0:00:32]} 30. Ra1 {[%clk 0:00:29]}  Rxb2 {[%clk 0:00:31]} 31. Rf1 {[%clk 0:00:29]}  Rc2 {[%clk 0:00:29]} 32. Rxf6 {[%clk 0:00:28]}  Rxc3 {[%clk 0:00:29]} 33. Rg7 {[%clk 0:00:04]}  Rd8 {[%clk 0:00:22]} 34. Rff7 {[%clk 0:00:02]}  Rd1+ {[%clk 0:00:17]} 35. Kh2 {[%clk 0:00:02]}  Rcc1 {[%clk 0:00:18]} 36. Rg8+ {[%clk 0:00:03]}  Rd8 {[%clk 0:00:18]} 37. Rgg7 {[%clk 0:00:03]}  Rdd1 {[%clk 0:00:14]} 38. Rf8+ {[%clk 0:00:03]}  Rd8 {[%clk 0:00:15]} 39. Rf4 {[%clk 0:00:04]}  Rc4 {[%clk 0:00:11]} 40. Rxh4 {[%clk 0:00:04]}  Rxb4 {[%clk 0:00:11]} 41. Rhh7 {[%clk 0:00:04]}  Rxe4 {[%clk 0:00:10]} 42. Rxb7 {[%clk 0:00:04]}  Rg8 {[%clk 0:00:07]} 43. Ra7 {[%clk 0:00:04]}  Kb8 {[%clk 0:00:07]} 44. Rhb7+ {[%clk 0:00:03]}  Kc8 {[%clk 0:00:08]} 45. Rf7 {[%clk 0:00:04]}  Kb8 {[%clk 0:00:08]} 46. Rab7+ {[%clk 0:00:02]}  Ka8 {[%clk 0:00:07]} 47. g4 {[%clk 0:00:02]}  c5 {[%clk 0:00:04]} 48. Ra7+ {[%clk 0:00:02]}  Kb8 {[%clk 0:00:05]} 49. Rxa6 {[%clk 0:00:02]}  b4 {[%clk 0:00:04]} 50. Rb6+ {[%clk 0:00:03]}  Ka8 {[%clk 0:00:04]} 51. Rb5 {[%clk 0:00:03]}  Rc4 {[%clk 0:00:04]} 52. Kg3 {[%clk 0:00:03]}  Rc3+ {[%clk 0:00:03]} 53. Kf4 {[%clk 0:00:03]}  Rxh3 {[%clk 0:00:03]} 54. Ra5+ {[%clk 0:00:04]}  Kb8 {[%clk 0:00:03]} 55. Rxc5 {[%clk 0:00:04]}  Rc3 {[%clk 0:00:01]} 56. Rb5+ {[%clk 0:00:05]}  Ka8 {[%clk 0:00:01]} 57. Rxb4 {[%clk 0:00:05]}  Rc6 {[%clk 0:00:01]} 58. Rf5 {[%clk 0:00:05]}  Ra6 {[%clk 0:00:01]} 59. g5 {[%clk 0:00:05]}  Rh8 {[%clk 0:00:02]} 60. Kg4 {[%clk 0:00:05]}  Rg8 {[%clk 0:00:02]} 61. Rbf4 {[%clk 0:00:05]}  Kb7 {[%clk 0:00:01]} 62. Rf8 {[%clk 0:00:05]}  Rgg6 {[%clk 0:00:00]} 63. R8f6 {[%clk 0:00:05]} 1-0


[Site "https://www.chess.com"]

[Event "Titled Tuesday Blitz August 22 Late 2023"]
[White "Deac, Bogdan-Daniel"]
[Black "Hakobyan, Aram"]
[WhiteFideId "1226380"]
[BlackFideId "13306677"]
[WhiteElo "3047"]
[BlackElo "2997"]
[Result "0-1"]
[Round "11"]
[TimeControl "180+1"]
[Date "2023.08.22"]
[WhiteClock "0:00:02"]
[BlackClock "0:00:27"]
[Board "5"]

1. e4 {[%clk 0:03:00]}  c5 {[%clk 0:03:00]} 2. Nf3 {[%clk 0:03:00]}  d6 {[%clk 0:03:00]} 3. h3 {[%clk 0:03:00]}  Nf6 {[%clk 0:03:00]} 4. Nc3 {[%clk 0:02:59]}  e5 {[%clk 0:02:57]} 5. Bc4 {[%clk 0:02:59]}  Be7 {[%clk 0:02:57]} 6. d3 {[%clk 0:02:59]}  h6 {[%clk 0:02:57]} 7. Nh2 {[%clk 0:02:56]}  Be6 {[%clk 0:02:56]} 8. Ng4 {[%clk 0:02:54]}  Nbd7 {[%clk 0:02:55]} 9. O-O {[%clk 0:02:43]}  O-O {[%clk 0:02:54]} 10. Qf3 {[%clk 0:02:33]}  a6 {[%clk 0:02:53]} 11. a4 {[%clk 0:02:32]}  Nxg4 {[%clk 0:02:49]} 12. hxg4 {[%clk 0:02:32]}  Bg5 {[%clk 0:02:49]} 13. Qe2 {[%clk 0:02:18]}  Bxc1 {[%clk 0:02:44]} 14. Raxc1 {[%clk 0:02:17]}  Qg5 {[%clk 0:02:44]} 15. f3 {[%clk 0:02:17]}  Nf6 {[%clk 0:02:39]} 16. Qf2 {[%clk 0:01:51]}  h5 {[%clk 0:02:33]} 17. gxh5 {[%clk 0:01:51]}  Nxh5 {[%clk 0:02:33]} 18. Ne2 {[%clk 0:01:51]}  Nf4 {[%clk 0:02:14]} 19. Nxf4 {[%clk 0:01:27]}  exf4 {[%clk 0:02:14]} 20. Qd2 {[%clk 0:01:28]}  Rad8 {[%clk 0:01:55]} 21. g4 {[%clk 0:01:02]}  d5 {[%clk 0:01:51]} 22. Bxd5 {[%clk 0:01:01]}  Bxd5 {[%clk 0:01:51]} 23. exd5 {[%clk 0:01:02]}  Rxd5 {[%clk 0:01:47]} 24. Rce1 {[%clk 0:00:29]}  f5 {[%clk 0:01:44]} 25. Qg2 {[%clk 0:00:25]}  fxg4 {[%clk 0:01:05]} 26. fxg4 {[%clk 0:00:25]}  Rd6 {[%clk 0:00:34]} 27. Kf2 {[%clk 0:00:03]}  f3 {[%clk 0:00:26]} 28. Qg3 {[%clk 0:00:03]}  Qd2+ {[%clk 0:00:26]} 29. Kg1 {[%clk 0:00:02]}  f2+ {[%clk 0:00:27]} 0-1


[Site "https://www.chess.com"]